Cogmind - Beta 13 @@@ ROGUE MODE // 2024.04.08 @ 14:07:33 Player: Olmer Result: Destroyed by S-27 Virus with Autogun Performance ------------- Evolutions (3) 1500 Regions Visited (8) 1600 Robots Destroyed (45) 225 Value Destroyed (1571) 1571 Prototype IDs (4) 80 Alien Tech Used (0) 0 Bonus (300) 300 TOTAL SCORE: 5276 Bonus ------- Aligned with FarCom 300 Cogmind --------- Core Integrity 0/700 Matter 280/300 Energy 100/100 System Corruption 1% Temperature Cool (0) Movement Core (50) Location -7/Factory Parts ------- > --- POWER (2) -------- (None) > --- PROPULSION (3) --- (None) > --- UTILITY (6) ------ (None) > --- WEAPON (2) ------- (None) > --- INVENTORY (5) ---- Energy Filter Hardened Light Armor Plating Shock Rifle Arc Projector Minigun Peak State ------------ > --- POWER ------------ Light Nuclear Core Micro Nuclear Core > --- PROPULSION ------- Armored Treads Carbon-fiber Leg Carbon-fiber Leg > --- UTILITY ---------- Improved Heat Sink Improved Heat Sink Advanced Heat Sink Advanced Cooling System Small Storage Unit Signal Interpreter > --- WEAPON ----------- Remote Datajack Makeshift Axe > --- INVENTORY -------- Energy Filter Hardened Light Armor Plating Shock Rifle Shock Rifle Arc Projector Pulse Rifle Minigun Heavy Machine Gun [Rating: 45] Favorites ----------- Power Ion Engine Engine Ion Engine Power Core Micro Nuclear Core Propulsion Light Treads Treads Light Treads Leg Carbon-fiber Leg Utility Small Storage Unit Device Improved Heat Sink Storage Small Storage Unit Processor Signal Interpreter Hackware Hacking Suite Protection Light Armor Plating Weapon Heavy Assault Rifle Energy Gun Beam Rifle Energy Cannon Heavy Particle Cannon Ballistic Gun Heavy Assault Rifle Ballistic Cannon Light Cannon Launcher Rocket Launcher Special Weapon Remote Datajack Slashing Weapon Makeshift Axe Build | -11 -10 -10 -10 -9 -8 -7 -7 -7 ------- Run | Yrd Mat Min Exi Min Mat Fac Was Fac Slots Evolved 6 | . . . . . 4 2 . . Power 1 | . . . . . 1 . . . Propulsion 1 | . . . . . 1 . . . Utility 4 | . . . . . 2 2 . . Weapon . | . . . . . . . . . Parts Attached 68 | 6 8 2 1 4 16 29 2 . Power 7 | 1 . . . 1 1 4 . . Engine 4 | 1 . . . 1 1 1 . . Core 3 | . . . . . . 3 . . Reactor . | . . . . . . . . . Propulsion 17 | 2 1 1 . 1 6 5 1 . Treads 8 | 2 1 1 . . 3 1 . . Leg 9 | . . . . 1 3 4 1 . Wheel . | . . . . . . . . . Hover . | . . . . . . . . . Flight . | . . . . . . . . . Utility 16 | 1 4 . . . 4 6 1 . Device 7 | . . . . . 2 4 1 . Storage 2 | 1 1 . . . . . . . Processor 2 | . 1 . . . . 1 . . Hackware 1 | . 1 . . . . . . . Protection 4 | . 1 . . . 2 1 . . Artifact . | . . . . . . . . . Weapon 28 | 2 3 1 1 2 5 14 . . Energy Gun 5 | 1 . 1 . 1 1 1 . . Energy Cannon 2 | . . . . . 1 1 . . Ballistic Gun 11 | 1 2 . 1 . 1 6 . . Ballistic Cannon 1 | . 1 . . . . . . . Launcher 2 | . . . . . 1 1 . . Special Weapon 1 | . . . . . . 1 . . Impact Weapon . | . . . . . . . . . Slashing Weapon 6 | . . . . 1 1 4 . . Piercing Weapon . | . . . . . . . . . Special Melee Weapon . | . . . . . . . . . Unidentified Prototypes 2 | . . . . . 2 . . . Parts Lost 25 | . 1 2 . 1 1 12 7 1 Power 3 | . . . . . 1 2 . . Propulsion 10 | . . 2 . 1 . 3 3 1 Utility 8 | . 1 . . . . 4 3 . Weapon 4 | . . . . . . 3 1 . Highest Loss Streak 7 | . 1 1 . 1 1 6 7 1 To Critical Strikes 2 | . . . . . . . 1 1 Average Slot Usage (%) 88 | . 99 87 85 84 87 92 41 7 Engine 11 | . 14 14 14 14 14 7 . . Core 1 | . . . . . . 4 6 . Treads 12 | . 28 16 14 7 10 4 2 . Leg 7 | . . . . 5 9 17 7 7 Device 4 | . . . . . 2 16 11 . Storage 10 | . 13 14 14 14 9 7 2 . Processor 9 | . 2 14 14 14 9 11 4 . Hackware 2 | . 10 . . . . . . . Protection 4 | . . . . . 14 7 . . Energy Gun 5 | . 3 10 14 12 4 . . . Ballistic Gun 14 | . 21 17 14 14 11 10 . . Naked Turns 53 | . . . . . . . 53 . Heaviest Build 39 | 13 16 16 16 16 24 39 27 . Greatest Support 50 | 40 40 40 20 20 40 49 50 50 Greatest Overweight (x) 4 | 4 . . . 4 2 1 4 . Average Overweight (x) . | . . . . . . . . . Largest Inventory Capacity 8 | 8 8 8 8 8 8 8 8 5 Average Capacity 7 | 7 7 8 8 8 8 8 6 5 Most Carried 8 | 4 8 8 8 8 8 8 8 5 Average Carried 7 | 2 7 7 7 7 7 6 6 5 Final Capacity 8 | 8 8 8 8 8 8 8 5 5 Final Carried 8 | 4 7 8 8 8 8 8 5 5 Class Distribution -------------------- 60% | Mutant 35% | Scavenger-Mutant 4% | Skirmisher Dominant Class ---------------- Mutant | -10/Materials Mutant | -10/Mines Mutant | -10/Exiles Mutant | -9/Mines Scavenger-Mutant | -8/Materials Scavenger-Mutant | -7/Factory Mutant | -7/Waste Mutant | -7/Factory Resources | -11 -10 -10 -10 -9 -8 -7 -7 -7 ----------- Run | Yrd Mat Min Exi Min Mat Fac Was Fac Matter Collected 1492 | 173 347 79 . 57 219 617 . . Remotely . | . . . . . . . . . Salvage Created 1657 | . 391 180 . 62 219 805 . . Parts 111 | . 28 15 . 3 23 42 . . Haulers Intercepted . | . . . . . . . . . Recyclers Shooed 1 | . . . . . 1 . . . Parts Field Recycled . | . . . . . . . . . Retrieved Matter . | . . . . . . . . . Parts Self-Destructed . | . . . . . . . . . Prevented . | . . . . . . . . . Kills | -11 -10 -10 -10 -9 -8 -7 -7 -7 ------- Run | Yrd Mat Min Exi Min Mat Fac Was Fac Combat Hostiles Destroyed 39 | . 9 8 . 4 4 14 . . Melee 6 | . . . . 2 . 4 . . Guns 27 | . 9 8 . 2 3 5 . . Cannons 2 | . . . . . . 2 . . AOE 4 | . . . . . 1 3 . . Classes Destroyed 13 | . 3 2 . 1 3 4 . . Builder 1 | . . . . . . 1 . . Tunneler 1 | . . . . . 1 . . . Recycler 3 | . . . . . 1 2 . . Operator 2 | . 1 . . . 1 . . . Watcher 1 | . 1 . . . . . . . Swarmer 8 | . . 6 . 2 . . . . Grunt 16 | . 9 . . . . 7 . . Sentry 4 | . . 2 . . 2 . . . Specialist 3 | . . . . . . 3 . . Hunter 2 | . . . . . 2 . . . Programmer 3 | . . . . . . 3 . . Heavy 1 | . . . . . . 1 . . Assembled 2 | . . . . 2 . . . . Best Kill Streak 5 | . 4 3 . 2 3 5 . . Combat Bots Only 4 | . 4 3 . 2 2 4 . . Max Kills in Single Turn 2 | . 2 1 . 1 2 2 . . Gunslinging 1 | . 1 . . . . . . . Exploded 2 | . . . . . 1 2 . . Melee 1 | . . . . 1 . 1 . . Uniques/NPCs Destroyed . | . . . . . . . . . Combat | -11 -10 -10 -10 -9 -8 -7 -7 -7 -------- Run | Yrd Mat Min Exi Min Mat Fac Was Fac Hostile Shots Fired 364 | . 60 34 . 32 36 128 9 65 Missed 96 | . 10 7 . 9 12 40 1 17 Damage Taken 4408 | . 625 285 . 223 376 1888 310 701 Core 906 | . 93 17 . 64 20 366 249 97 Absorbed by Shields . | . . . . . . . . . Redirected to Shielding 50 | . . . . . 25 25 . . Core Remaining (%) 75 | 100 . . . 30 96 . . . Volleys Fired 136 | . 42 12 . 4 27 51 . . Largest 2 | . 2 2 . 2 2 2 . . Hottest 105 | . 60 79 . 79 86 105 . . Shots Fired 259 | . 84 24 . 8 51 92 . . Gun 227 | . 84 24 . 8 48 63 . . Cannon 23 | . . . . . . 23 . . Launcher 8 | . . . . . 3 5 . . Special 1 | . . . . . . 1 . . Kinetic 187 | . 65 19 . 4 38 61 . . Thermal 63 | . 19 5 . 4 10 25 . . Explosive 8 | . . . . . 3 5 . . Electromagnetic . | . . . . . . . . . Robot Hit Streak 14 | . 13 14 . 8 8 11 . . Robot Miss Streak 5 | . 5 1 . 2 4 5 . . Penetration Max . | . . . . . . . . . Secondary Targets 2 | . 1 1 . . . . . . Max Gunslinging Chain 1 | . 1 1 . . . . . . Shots Hit Robots 170 | . 54 17 . 7 29 63 . . Core Hits 73 | . 21 10 . 4 10 28 . . Critical Kills 2 | . . 1 . . 1 . . . Critical Parts Destroyed 4 | . 1 . . . 2 1 . . Critical Strikes 8 | . 1 1 . 1 3 2 . . Burn 1 | . . . . 1 . . . . Destroy 6 | . 1 1 . . 3 1 . . Sever 1 | . . . . . . 1 . . Melee Attacks 19 | . . . . 7 3 9 . . Impact . | . . . . . . . . . Slashing 19 | . . . . 7 3 9 . . Piercing . | . . . . . . . . . Sneak Attacks 1 | . . . . . 1 . . . Combat Hostiles . | . . . . . . . . . Follow-up Attacks . | . . . . . . . . . Damage Inflicted 3679 | . 729 243 . 169 725 1813 . . Guns 2122 | . 729 243 . 83 369 698 . . Cannons 300 | . . . . . . 300 . . Explosions 797 | . . . . . 276 521 . . Melee 460 | . . . . 86 80 294 . . Ramming . | . . . . . . . . . Kinetic 1794 | . 650 200 . 26 254 664 . . Thermal 843 | . 79 43 . 57 330 334 . . Explosive 582 | . . . . . 61 521 . . Electromagnetic . | . . . . . . . . . Impact . | . . . . . . . . . Slashing 460 | . . . . 86 80 294 . . Piercing . | . . . . . . . . . Highest Corruption 1 | . . . . . . 1 1 1 Average Corruption 1 | . . . . . . 1 1 1 Corruption Purged . | . . . . . . . . . Corruption Blocked . | . . . . . . . . . Effects 9 | . . . . . . 6 1 2 Message Errors 1 | . . . . . . . 1 . Matter Fused 3 | . . . . . . 2 . 1 Energy Discharges 2 | . . . . . . 2 . . Parts Fused 1 | . . . . . . 1 . . Data Loss (minor) 1 | . . . . . . 1 . . Data Loss (major) 1 | . . . . . . . . 1 Overload Shots . | . . . . . . . . . Overflow Damage 121 | . . . . . 91 30 . . Projectiles . | . . . . . . . . . Explosions 66 | . . . . . 36 30 . . Melee 55 | . . . . . 55 . . . Knockbacks . | . . . . . . . . . Impact . | . . . . . . . . . Kinetic . | . . . . . . . . . Secondary . | . . . . . . . . . Self-Inflicted Damage 102 | . . . . . 29 73 . . Shots 5 | . . . . . 2 3 . . Rammed . | . . . . . . . . . Targets Rammed . | . . . . . . . . . Kicked . | . . . . . . . . . Crushed . | . . . . . . . . . Highest Temperature 120 | . 60 72 . 72 120 45 . . Average Temperature 25 | . 15 29 . 31 37 19 . . Received Heat Transfer 779 | . 321 54 . 80 36 288 . . Siege Activations . | . . . . . . . . . Robots Corrupted . | . . . . . . . . . Combat Hostiles . | . . . . . . . . . Parts Fried . | . . . . . . . . . Impact Corruptions . | . . . . . . . . . Robots Melted . | . . . . . . . . . Combat Hostiles . | . . . . . . . . . Parts Melted 4 | . . . . 1 1 2 . . Heat Transferred 1435 | . 175 111 . 222 409 518 . . Parts Sabotaged . | . . . . . . . . . Parts Stolen . | . . . . . . . . . Parts Stripped . | . . . . . . . . . Power Chain Reactions . | . . . . . . . . . Alert | -11 -10 -10 -10 -9 -8 -7 -7 -7 ------- Run | Yrd Mat Min Exi Min Mat Fac Was Fac Peak Influence 248 | . 137 195 . 40 248 176 24 25 Initial 35 | . . 35 . . . 18 24 10 Average 50 | . 44 63 . 3 107 50 16 12 Maximum Alert Level 1 | . . . . . 1 . . . Low Security (%) 95 | 100 100 100 . 100 75 100 100 100 Level 1 4 | . . . . . 24 . . . Level 2 . | . . . . . . . . . Level 3 . | . . . . . . . . . Level 4 . | . . . . . . . . . Level 5 . | . . . . . . . . . High Security . | . . . . . . . . . Max Security . | . . . . . . . . . Squads Dispatched 15 | . 5 . . . 1 9 . . Investigation 3 | . 3 . . . . . . . Extermination 3 | . . . . . . 3 . . Reinforcement 9 | . 2 . . . 1 6 . . Assault . | . . . . . . . . . Garrison . | . . . . . . . . . Intercept . | . . . . . . . . . Searches Triggered . | . . . . . . . . . Construction Impeded . | . . . . . . . . . Haulers Reinforced . | . . . . . . . . . Active Scanning Responses . | . . . . . . . . . Cargo Convoy Interrupts . | . . . . . . . . . Stealth | -11 -10 -10 -10 -9 -8 -7 -7 -7 --------- Run | Yrd Mat Min Exi Min Mat Fac Was Fac Distress Signals 2 | . 1 . . . 1 . . . Communications Jammed . | . . . . . . . . . Distress Signals . | . . . . . . . . . Times Spotted 86 | . 28 10 . 6 13 20 5 4 Peak Tracking Total 5 | . 4 3 . 3 2 4 5 4 Tactical Retreats 7 | . . 1 . . . 4 1 1 Traps | -11 -10 -10 -10 -9 -8 -7 -7 -7 ------- Run | Yrd Mat Min Exi Min Mat Fac Was Fac Traps Triggered 4 | . 3 . . . . 1 . . Indirectly . | . . . . . . . . . Trap Hack Attempts . | . . . . . . . . . Triggered . | . . . . . . . . . Disarmed . | . . . . . . . . . Reprogrammed . | . . . . . . . . . Reused . | . . . . . . . . . Traps Extracted . | . . . . . . . . . Installed . | . . . . . . . . . Triggered . | . . . . . . . . . Machines | -11 -10 -10 -10 -9 -8 -7 -7 -7 ---------- Run | Yrd Mat Min Exi Min Mat Fac Was Fac Machines Disabled 5 | . . . . . 4 1 . . Max in Single Turn 2 | . . . . . 2 1 . . Machines Repaired . | . . . . . . . . . Machines Dismantled . | . . . . . . . . . Machines Sabotaged . | . . . . . . . . . Overloaded Fab Kills . | . . . . . . . . . Hacking | -11 -10 -10 -10 -9 -8 -7 -7 -7 --------- Run | Yrd Mat Min Exi Min Mat Fac Was Fac Machines Accessed 7 | . 4 . . . 1 2 . . Terminals 7 | . 4 . . . 1 2 . . Fabricators . | . . . . . . . . . Repair Stations . | . . . . . . . . . Recycling Units . | . . . . . . . . . Scanalyzers . | . . . . . . . . . Garrison Access . | . . . . . . . . . Total Hacks 18 | . 11 . . . 2 5 . . Successful 8 | . 5 . . . . 3 . . Failed 10 | . 6 . . . 2 2 . . Catastrophic 2 | . 1 . . . 1 . . . Database Lockouts . | . . . . . . . . . Manual 1 | . . . 1 . . . . . Terminals 18 | . 11 . . . 2 5 . . Fabricators . | . . . . . . . . . Repair Stations . | . . . . . . . . . Recycling Units . | . . . . . . . . . Scanalyzers . | . . . . . . . . . Garrison Access . | . . . . . . . . . Terminal Hacks 8 | . 5 . . . . 3 . . Prototype ID Bank 1 | . . . . . . 1 . . Repair Station Index 1 | . . . . . . 1 . . Alert Level 1 | . 1 . . . . . . . Locate Traps 1 | . . . . . . 1 . . Maintenance Status 1 | . 1 . . . . . . . Surveillance Status 1 | . 1 . . . . . . . Reinforcement Status 1 | . 1 . . . . . . . Recall Reinforcements 1 | . 1 . . . . . . . Fabricator Hacks . | . . . . . . . . . Repair Station Hacks . | . . . . . . . . . Recycling Unit Hacks . | . . . . . . . . . Scanalyzer . | . . . . . . . . . Garrison Access Hacks . | . . . . . . . . . Unauthorized Hacks . | . . . . . . . . . Terminals . | . . . . . . . . . Fabricators . | . . . . . . . . . Repair Stations . | . . . . . . . . . Recycling Units . | . . . . . . . . . Scanalyzers . | . . . . . . . . . Garrison Access . | . . . . . . . . . Data Cores Recovered . | . . . . . . . . . Used . | . . . . . . . . . Hacking Detections 7 | . 4 . . . 1 2 . . Full Trace Events 1 | . 1 . . . . . . . Feedback Events . | . . . . . . . . . Feedback Blocked . | . . . . . . . . . Robot Schematics Acquired . | . . . . . . . . . Robots Built . | . . . . . . . . . Authchips . | . . . . . . . . . Time . | . . . . . . . . . Total Robot Build Rating . | . . . . . . . . . Part Schematics Acquired . | . . . . . . . . . Parts Built . | . . . . . . . . . Authchips . | . . . . . . . . . Time . | . . . . . . . . . Total Part Build Rating . | . . . . . . . . . Parts Repaired . | . . . . . . . . . Time . | . . . . . . . . . Parts Recycled . | . . . . . . . . . Recycled Matter . | . . . . . . . . . Retrieved Matter . | . . . . . . . . . Retrieved Components . | . . . . . . . . . Parts Scanalyzed . | . . . . . . . . . Part Schematics Acquired . | . . . . . . . . . Parts Damaged . | . . . . . . . . . Bothacking | -11 -10 -10 -10 -9 -8 -7 -7 -7 ------------ Run | Yrd Mat Min Exi Min Mat Fac Was Fac Used RIF Installer . | . . . . . . . . . Robots Hacked 1 | . . . . . . 1 . . Non-combat 1 | . . . . . . 1 . . Combat . | . . . . . . . . . Robot Hacks Applied 1 | . . . . . . 1 . . find_chute 1 | . . . . . . 1 . . Relay Couplers Released . | . . . . . . . . . Fabnet Peak Effective % . | . . . . . . . . . Robots Rewired . | . . . . . . . . . Allies Hacked . | . . . . . . . . . Hacks Repelled . | . . . . . . . . . Allies | -11 -10 -10 -10 -9 -8 -7 -7 -7 -------- Run | Yrd Mat Min Exi Min Mat Fac Was Fac Total Allies 1 | . . . . . . . 1 . Largest Group 1 | . . . . . . . 1 . Highest-Rated Group 31 | . . . . . . . 31 . Highest-Rated Ally 31 | . . . . . . . 31 . Total Orders . | . . . . . . . . . Ally Attacks 12 | . . . . . . . 12 . Total Damage 233 | . . . . . . . 233 . Kills . | . . . . . . . . . Allies Corrupted . | . . . . . . . . . Allies Melted . | . . . . . . . . . Intel | -11 -10 -10 -10 -9 -8 -7 -7 -7 ------- Run | Yrd Mat Min Exi Min Mat Fac Was Fac Robot Analysis Total . | . . . . . . . . . Derelict Logs Recovered 3 | . . 1 . 2 . . . . Drone Launches . | . . . . . . . . . Drone Recoveries . | . . . . . . . . . Exploration | -11 -10 -10 -10 -9 -8 -7 -7 -7 ------------- Run | Yrd Mat Min Exi Min Mat Fac Was Fac Turns Passed 8179 | 132 1551 1134 516 1208 1275 2058 154 151 Spaces Moved 3605 | 89 762 621 321 596 420 547 158 91 Core 127 | 36 . . . 4 . . 87 . Treads 2455 | 53 762 621 321 361 294 41 2 . Legs 1023 | . . . . 231 126 506 69 91 Wheels . | . . . . . . . . . Hover . | . . . . . . . . . Flight . | . . . . . . . . . Fastest Speed 50 | 50 160 160 160 160 120 120 50 140 Average Speed 155 | 128 160 160 160 172 175 131 88 140 Slowest Speed 260 | 250 160 160 160 250 260 250 250 140 Overloaded Moves . | . . . . . . . . . Propulsion Burnouts . | . . . . . . . . . Robots Hopped . | . . . . . . . . . Cave-ins Triggered . | . . . . . . . . . Exploration Rate (%) 49 | 6 70 94 62 94 29 9 81 4 Regions Visited 8 Branch Regions 3 Pre-discovered Areas 2 | . . 1 . 1 . . . . Known Exits Taken 5 | . 1 1 1 1 1 . . . Unknown Exits Taken 1 | 1 . . . . . . . . Scrap Searched 2 | . . 1 . 1 . . . . Spaces Dug 3 | . . . . . 2 1 . . Terrain Destroyed 89 | . . . . . 61 28 . . Melee 3 | . . . . . 2 1 . . Projectile 2 | . . . . . . 2 . . AOE 84 | . . . . . 59 25 . . Terrain Rammed . | . . . . . . . . . Walls Destroyed . | . . . . . . . . . Machines Disabled . | . . . . . . . . . Actions | -11 -10 -10 -10 -9 -8 -7 -7 -7 --------- Run | Yrd Mat Min Exi Min Mat Fac Was Fac Total 5914 | 103 1013 738 324 763 904 1783 171 115 Wait 2010 | 5 181 100 1 144 419 1125 11 24 Move 3598 | 88 761 620 320 595 419 547 157 91 Hop . | . . . . . . . . . Pick Up 48 | 4 11 3 1 5 8 16 . . Fast Attach 19 | 6 1 . . . 6 4 2 . Attach 24 | . 3 1 1 1 4 14 . . Detach 5 | . 2 . . . 2 1 . . Swap 25 | . 4 1 . 3 6 11 . . Drop 30 | . 8 1 1 4 10 5 1 . Fire 136 | . 42 12 . 4 27 51 . . Melee 19 | . . . . 7 3 9 . . Ram . | . . . . . . . . . Kick . | . . . . . . . . . Crush . | . . . . . . . . . Escape Stasis . | . . . . . . . . . Rewire . | . . . . . . . . . Trap . | . . . . . . . . . Miscellaneous . | . . . . . . . . . Route ------- -11/Scrapyard -10/Materials (discovered 2 exits: *Mat / *Min) -10/Mines (discovered 3 exits: *Mat x2 / *Exi) -10/Exiles -9/Mines (discovered 2 exits: *Mat x2) -8/Materials -7/Factory (discovered 2 exits: *Sto / *Low) -7/Waste -7/Factory History --------- Turn | Location | Event 2 | -11/Scrapyard | Discovered new exit (range 16) 133 | -11/Scrapyard | Entered Materials 302 | -10/Materials | Build established: Mutant 883 | -10/Materials | Discovered new exit (range 7) 1611 | -10/Materials | Discovered new exit (range 16) 1634 | -10/Materials | Identified exit to Materials 1682 | -10/Materials | Identified exit to Mines 1684 | -10/Materials | Entered Mines 1852 | -10/Mines | Deemed a non-threat by the Exiles lab entrance 1852 | -10/Mines | Discovered new exit (range 5) 1856 | -10/Mines | Identified exit to Exiles 1877 | -10/Mines | Discovered exit to Materials (range 14) 1953 | -10/Mines | Discovered exit to Materials (range 14) 2256 | -10/Mines | Learned Materials interactive machine intel 2320 | -10/Mines | Learned location of Storage (-7) 2818 | -10/Mines | Entered Exiles 2847 | -10/Exiles | Discovered new exit (range 15) 2866 | -10/Exiles | Identified exit to Mines 2897 | -10/Exiles | Met 8R-AWN 2922 | -10/Exiles | Met EX-HEX 2982 | -10/Exiles | Met EX-DEC 3049 | -10/Exiles | Met EX-BIN 3084 | -10/Exiles | Aligned with FarCom system 3086 | -10/Exiles | Given EX-Vault access code 3122 | -10/Exiles | Opened EX-Vault 3134 | -10/Exiles | Found Prototype Device 3193 | -10/Exiles | Warned to stay clear of 0b10 Research branches 3334 | -10/Exiles | Left Exiles lab with Cloak of Protection 3334 | -10/Exiles | Entered Mines 3421 | -9/Mines | A weapon hastily lodged in a ceiling crevice suddenly fell to the ground 3481 | -9/Mines | Discovered new exit (range 11) 3494 | -9/Mines | Identified exit to Materials 3617 | -9/Mines | Learned 2 Materials zone layouts 3698 | -9/Mines | Found a damaged Exp. Sensor Array with a note attached 3702 | -9/Mines | Found Prototype Device 3752 | -9/Mines | Assembled infested the area 3786 | -9/Mines | Core integrity fell below 50% 4064 | -9/Mines | Discovered exit to Materials (range 14) 4542 | -9/Mines | Entered Materials 4542 | -8/Materials | Evolved 4 slots: Power x1, Propulsion x1, Utility x2 4544 | -8/Materials | Loaded intel: 19 interactive machine locations 4560 | -8/Materials | Identified Exp. Sensor Array 4561 | -8/Materials | Identified Cloak of Protection 4850 | -8/Materials | Build established: Skirmisher 5338 | -8/Materials | Build established: Scavenger-Mutant 5744 | -8/Materials | Discovered new exit (range 4) 5747 | -8/Materials | Identified exit to Factory 5817 | -8/Materials | Entered Factory 5817 | -7/Factory | Evolved 2 slots: Utility x2 6836 | -7/Factory | Lost 4 parts (2n2u) 6901 | -7/Factory | Lost 6 parts (2p1n1u2w) 7608 | -7/Factory | Core integrity fell below 50% 7814 | -7/Factory | Discovered new exit (range 5) 7819 | -7/Factory | Identified exit to Lower Caves 7859 | -7/Factory | Discovered new exit (range 5) 7864 | -7/Factory | Identified exit to Storage 7875 | -7/Factory | Sucked down chute 7875 | -7/Factory | Entered Waste 7876 | -7/Waste | Met a frightened Derelict 7884 | -7/Waste | Spotted C-40 Crusher 7887 | -7/Waste | Spotted C-40 Crusher 7915 | -7/Waste | Spotted C-40 Crusher 7918 | -7/Waste | Spotted C-40 Crusher 7931 | -7/Waste | Crushed by Compactor (1 part destroyed, 1 dropped) 7936 | -7/Waste | Crushed by Compactor (1 part destroyed, 2 dropped) 7939 | -7/Waste | Crushed by Compactor (1 part destroyed, 1 dropped) 7939 | -7/Waste | Crushed by Compactor (1 part destroyed, 2 dropped) 7942 | -7/Waste | Crushed by Compactor (1 part destroyed) 7946 | -7/Waste | Core integrity fell below 20% 7946 | -7/Waste | Spotted C-40 Crusher 7973 | -7/Waste | Lost 7 parts (3n3u1w) 7991 | -7/Waste | Spotted C-40 Crusher 8016 | -7/Waste | Discovered new exit (range 10) 8029 | -7/Waste | Entered Factory 8180 | -7/Factory | Destroyed by S-27 Virus with Autogun Last Messages --------------- Mic. Nuclear Core crushed. Imp. Heat Sink crushed. Signal Interpreter crushed. Pulse Rifle crushed. Z,Y> O>NK% PUND6DZB#AS44S6PXHAUI Acquired Med. Armored Exoskeleton. EXIT=FOUND LOCATION=UNKNOWN GOAL=ESCAPE Receiving FarCom transmissions... K-01 Serf cleans the Pressure Siphon. System corrupted: Substantial component data lost. K-01 Serf cleans the Pressure Siphon. System corrupted: Matter fused (-6). K-01 Serf collects debris. K-01 Serf cleans the Pressure Siphon. ALERT: All DSF locations entering lockdown mode. Critical hit (Destroy). Med. Armored Exoskeleton destroyed. Map ----- +----------------------------------------------------+ | | | | | | | | | | | | | | | | | | | | | | | | | | | | | | | | | | | | | | | | | | | | | ?????????????????????????????????????????????????? | | ????????????????????##########??????########?????? | | ????????????????????# !!! #????? #?????? | | ????????????????????# !! @ ] #????#"""" ""#?????? | | ????????????????????# !! * #????#"""" ""#?????? | | ????????????????????# #????#"""" G#?????? | | ????????????????????# s s! #????#"""" ""#?????? | | ????????????????????# [s #????#"""" ""#?????? | | ????????????????????# / #????#"""" #?????? | | ????????????????????# s ] #????#"""" = #?????? | | ????????????????????# = #????# #?????? | | ??????????????###########+#############+########## | | ?????????? %^ ^ | | ?????????? | | ?????????? """"" | | ???????????############ ""T"" | | ??????????????????????# ^ | | ??????????????????????# """ ^"""" """" """" """" | | ??????????????????????# """ """" """" """" """" | | ??????????????????????+ """ """" """" """" """" | | ??????????????????????# | | ??????????????????????# | | ??????????????????????########################""Y" | | ??????????????????????????????????????????????"""" | | ??????????????????????????????????????????????#### | | ?????????????????????????????????????????????????? | | ?????????????????????????????????????????????????? | | ?????????????????????????????????????????????????? | +----------------------------------------------------+ Best States ------------- Heat Dissipation 81 Energy Generation 24 Energy Capacity 415 Matter Stores 300 Matter Capacity 300 Sight Range 16 Robot Scan Range 20 Terrain Scan Density 10 Additional Mass Support 9 Armor Coverage 375 Weapon Shielding 33 Evasion (%) 55 Target Analysis 5 Recoil Reduction 2 Offensive Hacking 10 Item Schematics ----------------- None Robot Schematics ------------------ None Fabricated ------------ Nothing Alien Tech Used ----------------- None Achievements -------------- I Survived The Infestation Challenges ------------ None Game ------ Seed SuspensionTripodCycler Manual? 0 Play Time 01:27:41 Cumulative 12.6 hours Start 2024.04.06 @ 18:15:55 End 2024.04.08 @ 14:07:33 Sessions 7 Manual Loads 0 Difficulty Rogue Special Mode None Game No. 7 Rogue 7 Adventurer 0 Explorer 0 Win Type - Total 0 Types 0/0/0/0/0/0/0/0/0 Lore% 10 Gallery% 10 Achievement% 12 Wizard Run 0 Options --------- Layout 1 ASCII 0 Keyboard 0 Movement Mouse Keybinds 0 Fullscreen 1 Font 48/Tamsyn++ Map View 50x35 Zoom Use 0% Tactical HUD 0 Map Filters NONE Filters NONE Steam 1 RUN: a006d148-740c-4d63-995a-27d3305460de